fUSD/lending_fUSD_20250618
["ID","MTS","AMOUNT","RATE_DAILY","PERIOD"]
[366371150,1750218661833,-490.0,0.00016767,2]
[366371151,1750218661843,-490.0,0.00016767,2]
[366371152,1750218661852,-571.41,0.00016767,2]
[366371153,1750218661862,-490.0,0.00016767,2]
[366371154,1750218661872,-490.0,0.00016767,2]
[366371155,1750218661882,-696.17,0.00016767,2]
[366371156,1750218661892,-490.0,0.00016767,2]
[366371157,1750218661903,-612.2732131,0.00016767,2]
[366371158,1750218661912,-490.0,0.00016767,2]
[366371159,1750218661923,-490.0,0.00016767,2]
[366371160,1750218661934,-490.0,0.00016767,2]
[366371161,1750218661944,-490.0,0.00016767,2]
[366371162,1750218661954,-490.0,0.00016767,2]
[366371163,1750218661966,-490.0,0.00016767,2]
[366371164,1750218661980,-490.0,0.00016767,2]
[366371165,1750218661993,-404.49515166,0.00016767,2]
[366371166,1750218662005,-490.0,0.00016767,2]
[366371167,1750218662016,-490.0,0.00016767,2]
[366371168,1750218662030,-490.0,0.00016767,2]
[366371169,1750218662043,-211.115972,0.00016767,2]
[366371170,1750218662056,-490.0,0.00016767,2]
[366371171,1750218662071,-211.115972,0.00016767,2]
[366371172,1750218662084,-512.34,0.00016767,2]
[366371173,1750218662096,-211.115972,0.00016767,2]
[366371174,1750218662106,-211.115972,0.00016767,2]
[366371175,1750218662122,-490.0,0.00016767,2]
[366371176,1750218662138,-490.0,0.00016767,2]
[366371177,1750218662151,-519.54,0.00016767,2]
[366371178,1750218662164,-490.0,0.00016767,2]
[366371179,1750218662176,-490.0,0.00016767,2]
[366371180,1750218662190,-490.0,0.00016767,2]
[366371181,1750218662203,-562.45,0.00016767,2]
[366371182,1750218662217,-490.0,0.00016767,2]
[366371183,1750218662231,-490.0,0.00016767,2]
[366371184,1750218662244,-473.75818078,0.00016767,2]
[366371185,1750218662257,-467.10583863,0.00016767,2]
[366371186,1750218662270,-169.42,0.00016767,2]
[366371187,1750218662283,-710.93,0.00016767,2]
[366371188,1750218662296,-490.0,0.00016767,2]
[366371189,1750218662311,-686.35,0.00016767,2]
[366371190,1750218662323,-490.0,0.00016767,2]
[366371191,1750218662335,-490.0,0.00016767,2]
[366371192,1750218662347,-490.0,0.00016767,2]
[366371193,1750218662360,-461.12173743,0.00016767,2]
[366371194,1750218662372,-490.0,0.00016767,2]
[366371195,1750218662387,-431.33537977,0.00016767,2]
[366371196,1750218662402,-576.58,0.00016767,2]
[366371197,1750218662414,-467.32361705,0.00016767,2]
[366371198,1750218662427,-490.0,0.00016767,2]
[366371199,1750218662438,-490.0,0.00016767,2]
[366371200,1750218662451,-152.252588,0.00016767,2]
[366371201,1750218662465,-866.913953,0.00016767,2]
[366371202,1750218662477,-628.4,0.00016767,2]
[366371203,1750218662488,-490.0,0.00016767,2]
[366371204,1750218662499,-749.85,0.00016767,2]
[366371205,1750218662513,-694.24,0.00016767,2]
[366371206,1750218662525,-490.0,0.00016767,2]
[366371207,1750218662537,-490.0,0.00016767,2]
[366371208,1750218662551,-617.04,0.00016767,2]
[366371209,1750218662563,-490.0,0.00016767,2]
[366371210,1750218662576,-2563.17997,0.00016767,2]
[366371211,1750218662588,-490.0,0.00016767,2]
[366371212,1750218662599,-490.0,0.00016767,2]
[366371213,1750218662612,-490.0,0.00016767,2]
[366371214,1750218662625,-561.79,0.00016767,2]
[366371215,1750218662638,-490.0,0.00016767,2]
[366371216,1750218662650,-490.0,0.00016767,2]
[366371217,1750218662662,-490.0,0.00016767,2]
[366371218,1750218662675,-490.0,0.00016767,2]
[366371219,1750218662687,-151.0,0.00016767,2]
[366371220,1750218662700,-151.0,0.00016767,2]
[366371221,1750218662712,-552.49,0.00016767,2]
[366371222,1750218662724,-1094.86,0.00016767,2]
[366371223,1750218662736,-490.0,0.00016767,2]
[366371224,1750218662746,-490.0,0.00016767,2]
[366371225,1750218662757,-151.0,0.00016767,2]
[366371226,1750218662768,-151.0,0.00016767,2]
[366371227,1750218662780,-151.0,0.00016767,2]
[366371228,1750218662795,-490.0,0.00016767,2]
[366371229,1750218662820,-490.0,0.00016767,2]
[366371230,1750218662840,-490.0,0.00016767,2]
[366371231,1750218662852,-796.03,0.00016767,2]
[366371232,1750218662864,-581.61,0.00016767,2]
[366371233,1750218662878,-490.0,0.00016767,2]
[366371234,1750218662891,-579.13,0.00016767,2]
[366371235,1750218662904,-490.0,0.00016767,2]
[366371236,1750218662917,-602.72,0.00016767,2]
[366371237,1750218662929,-1381.16,0.00016767,2]
[366371238,1750218662941,-151.0,0.00016767,2]
[366371239,1750218662954,-151.0,0.00016767,2]
[366371240,1750218662969,-490.0,0.00016767,2]
[366371241,1750218662981,-1124.14,0.00016767,2]
[366371242,1750218662993,-500.83986138,0.00016767,2]
[366371243,1750218663005,-490.0,0.00016767,2]
[366371244,1750218663016,-490.0,0.00016767,2]
[366371245,1750218663027,-468.48644296,0.00016767,2]
[366371246,1750218663039,-632.32,0.00016767,2]
[366371247,1750218663051,-490.0,0.00016767,2]
[366371248,1750218663063,-490.0,0.00016767,2]
[366371249,1750218663077,-490.0,0.00016767,2]
[366371250,1750218663089,-490.0,0.00016767,2]
[366371251,1750218663101,-1186.81,0.00016767,2]
[366371252,1750218663114,-490.0,0.00016767,2]
[366371253,1750218663130,-490.0,0.00016767,2]
[366371254,1750218663142,-490.0,0.00016767,2]
[366371255,1750218663154,-1405.72,0.00016767,2]
[366371256,1750218663168,-895.51,0.00016767,2]
[366371257,1750218663181,-738.54,0.00016767,2]
[366371258,1750218663193,-490.0,0.00016767,2]
[366371259,1750218663206,-490.0,0.00016767,2]
[366371260,1750218663218,-690.5,0.00016767,2]
[366371261,1750218663231,-894.21,0.00016767,2]
[366371262,1750218663242,-490.0,0.00016767,2]
[366371263,1750218663255,-490.0,0.00016767,2]
[366371264,1750218663267,-490.0,0.00016767,2]
[366371265,1750218663279,-1560.48,0.00016767,2]
[366371266,1750218663290,-1096.0,0.00016767,2]
[366371267,1750218663302,-1157.88,0.00016767,2]
[366371268,1750218663314,-490.0,0.00016767,2]
[366371269,1750218663326,-490.0,0.00016767,2]
[366371270,1750218663338,-490.0,0.00016767,2]
[366371271,1750218663350,-490.0,0.00016767,2]
[366371272,1750218663362,-490.0,0.00016767,2]
[366371273,1750218663374,-1142.31,0.00016767,2]
[366371274,1750218663386,-490.0,0.00016767,2]
[366371275,1750218663399,-490.0,0.00016767,2]
[366371276,1750218663417,-1339.37,0.00016767,2]
[366371277,1750218663431,-945.47,0.00016767,2]
[366371278,1750218663445,-604.63,0.00016767,2]
[366371279,1750218663457,-490.0,0.00016767,2]
[366371280,1750218663469,-1118.57,0.00016767,2]
[366371281,1750218663480,-1252.78,0.00016767,2]
[366371282,1750218663492,-490.0,0.00016767,2]
[366371283,1750218663504,-490.0,0.00016767,2]
[366371284,1750218663517,-613.41,0.00016767,2]
[366371285,1750218663530,-1639.5,0.00016767,2]
[366371286,1750218663542,-559.89,0.00016767,2]
[366371287,1750218663554,-490.0,0.00016767,2]
[366371288,1750218663567,-490.0,0.00016767,2]
[366371289,1750218663580,-490.0,0.00016767,2]
[366371290,1750218663594,-490.0,0.00016767,2]
[366371291,1750218663606,-1319.76,0.00016767,2]
[366371292,1750218663619,-699.41,0.00016767,2]
[366371293,1750218663631,-490.0,0.00016767,2]
[366371294,1750218663645,-665.26,0.00016767,2]
[366371295,1750218663658,-491.52,0.00016767,2]
[366371296,1750218663671,-762.38,0.00016767,2]
[366371297,1750218663684,-919.64,0.00016767,2]
[366371298,1750218663697,-490.0,0.00016767,2]
[366371299,1750218663710,-490.0,0.00016767,2]
[366371300,1750218663722,-705.0,0.00016767,2]
[366371301,1750218663735,-564.55,0.00016767,2]
[366371302,1750218663748,-633.1,0.00016767,2]
[366371303,1750218663761,-490.0,0.00016767,2]
[366371304,1750218663773,-754.48,0.00016767,2]
[366371305,1750218663785,-1354.54,0.00016767,2]
[366371306,1750218663796,-490.0,0.00016767,2]
[366371307,1750218663808,-490.0,0.00016767,2]
[366371308,1750218663823,-1240.4,0.00016767,2]
[366371309,1750218663836,-845.84,0.00016767,2]
[366371310,1750218663851,-651.15,0.00016767,2]
[366371311,1750218663863,-635.79,0.00016767,2]
[366371312,1750218663876,-490.0,0.00016767,2]
[366371313,1750218663888,-885.34,0.00016767,2]
[366371314,1750218663901,-1028.48,0.00016767,2]
[366371315,1750218663913,-299.20529141,0.00016767,2]
[366371316,1750218663926,-539.71,0.00016767,2]
[366371317,1750218663939,-918.61,0.00016767,2]
[366371318,1750218663951,-597.05112983,0.00016767,2]
[366371319,1750218663963,-1311.32,0.00016767,2]
[366371320,1750218663975,-490.0,0.00016767,2]
[366371321,1750218663988,-151.0,0.00016767,2]
[366371322,1750218664000,-151.0,0.00016767,2]
[366371323,1750218664014,-151.0,0.00016767,2]
[366371324,1750218664027,-1790.55,0.00016767,2]
[366371325,1750218664041,-1406.34,0.00016767,2]
[366371326,1750218664054,-509.13,0.00016767,2]
[366371327,1750218664069,-151.0,0.00016767,2]
[366371328,1750218664084,-151.0,0.00016767,2]
[366371329,1750218664098,-151.0,0.00016767,2]
[366371330,1750218664112,-490.0,0.00016767,2]
[366371331,1750218664133,-490.0,0.00016767,2]
[366371332,1750218664145,-585.53,0.00016767,2]
[366371333,1750218664159,-1298.75,0.00016767,2]
[366371334,1750218664172,-776.09,0.00016767,2]
[366371335,1750218664185,-490.0,0.00016767,2]
[366371336,1750218664200,-490.0,0.00016767,2]
[366371337,1750218664212,-790.94,0.00016767,2]
[366371338,1750218664226,-490.0,0.00016767,2]
[366371339,1750218664239,-1760.56,0.00016767,2]
[366371340,1750218664253,-1402.38,0.00016767,2]
[366371341,1750218664267,-1216.93,0.00016767,2]
[366371342,1750218664280,-1081.64,0.00016767,2]
[366371343,1750218664295,-781.28,0.00016767,2]
[366371344,1750218664309,-670.06,0.00016767,2]
[366371345,1750218664321,-490.0,0.00016767,2]
[366371346,1750218664336,-769.08,0.00016767,2]
[366371347,1750218664352,-1095.39,0.00016767,2]
[366371348,1750218664365,-490.0,0.00016767,2]
[366371349,1750218664378,-787.9,0.00016767,2]
[366371350,1750218664391,-490.0,0.00016767,2]
[366371351,1750218664403,-572.29,0.00016767,2]
[366371352,1750218664417,-490.0,0.00016767,2]
[366371353,1750218664429,-1178.45,0.00016767,2]
[366371354,1750218664442,-587.51,0.00016767,2]
[366371355,1750218664455,-1176.28,0.00016767,2]
[366371356,1750218664468,-869.98,0.00016767,2]
[366371357,1750218664481,-540.39488941,0.00016767,2]
[366371358,1750218664494,-1200.44,0.00016767,2]
[366371359,1750218664507,-490.0,0.00016767,2]
[366371360,1750218664520,-151.0,0.00016767,2]
[366371361,1750218664531,-151.0,0.00016767,2]
[366371362,1750218664544,-151.0,0.00016767,2]
[366371363,1750218664556,-964.97,0.00016767,2]
[366371364,1750218664569,-490.0,0.00016767,2]
[366371365,1750218664583,-799.87,0.00016767,2]
[366371366,1750218664595,-727.1,0.00016767,2]
[366371367,1750218664609,-2005.58,0.00016767,2]
[366371368,1750218664620,-490.0,0.00016767,2]
[366371369,1750218664633,-490.0,0.00016767,2]
[366371370,1750218664646,-856.83,0.00016767,2]
[366371371,1750218664660,-1669.55,0.00016767,2]
[366371372,1750218664672,-708.79,0.00016767,2]
[366371373,1750218664685,-587.88,0.00016767,2]
[366371374,1750218664698,-151.0,0.00016767,2]
[366371375,1750218664711,-154.966258,0.00016767,2]
[366371376,1750218664724,-1279.8,0.00016767,2]
[366371377,1750218664736,-571.8,0.00016767,2]
[366371378,1750218664748,-858.87,0.00016767,2]
[366371379,1750218664760,-490.0,0.00016767,2]
[366371380,1750218664772,-768.48,0.00016767,2]
[366371381,1750218664784,-490.0,0.00016767,2]
[366371382,1750218664797,-490.0,0.00016767,2]
[366371383,1750218664809,-490.0,0.00016767,2]
[366371384,1750218664822,-1068.88,0.00016767,2]
[366371385,1750218664834,-490.0,0.00016767,2]
[366371386,1750218664846,-490.0,0.00016767,2]
[366371387,1750218664859,-702.79,0.00016767,2]
[366371388,1750218664871,-490.0,0.00016767,2]
[366371389,1750218664885,-1492.65,0.00016767,2]
[366371390,1750218664898,-1055.4,0.00016767,2]
[366371391,1750218664911,-2889.55,0.00016767,2]
[366371392,1750218664924,-490.0,0.00016767,2]
[366371393,1750218664937,-561.35,0.00016767,2]
[366371394,1750218664949,-969.55,0.00016767,2]
[366371395,1750218664961,-862.95,0.00016767,2]
[366371396,1750218664973,-490.0,0.00016767,2]
[366371397,1750218664987,-490.0,0.00016767,2]
[366371398,1750218664999,-490.0,0.00016767,2]
[366371399,1750218665011,-490.0,0.00016767,2]
[366371400,1750218665023,-490.0,0.00016767,2]
[366371401,1750218665035,-692.8,0.00016767,2]
[366371402,1750218665049,-490.0,0.00016767,2]
[366371403,1750218665061,-897.72,0.00016767,2]
[366371404,1750218665073,-490.0,0.00016767,2]
[366371405,1750218665087,-810.96,0.00016767,2]
[366371406,1750218665100,-548.83,0.00016767,2]
[366371407,1750218665113,-490.0,0.00016767,2]
[366371408,1750218665130,-490.0,0.00016767,2]
[366371409,1750218665142,-490.0,0.00016767,2]
[366371410,1750218665156,-490.0,0.00016767,2]
[366371411,1750218665168,-659.55,0.00016767,2]
[366371412,1750218665181,-490.0,0.00016767,2]
[366371413,1750218665196,-490.0,0.00016767,2]
[366371414,1750218665212,-662.51,0.00016767,2]
[366371415,1750218665228,-1895.51,0.00016767,2]
[366371416,1750218665241,-554.61,0.00016767,2]
[366371417,1750218665254,-490.0,0.00016767,2]
[366371418,1750218665267,-490.0,0.00016767,2]
[366371419,1750218665279,-490.0,0.00016767,2]
[366371420,1750218665292,-1259.37,0.00016767,2]
[366371421,1750218665305,-1398.21,0.00016767,2]
[366371422,1750218665318,-490.0,0.00016767,2]
[366371423,1750218665331,-1063.32,0.00016767,2]
[366371424,1750218665344,-490.0,0.00016767,2]
[366371425,1750218665357,-490.0,0.00016767,2]
[366371426,1750218665369,-490.0,0.00016767,2]
[366371427,1750218665382,-2102.4,0.00016767,2]
[366371428,1750218665394,-490.0,0.00016767,2]
[366371429,1750218665406,-490.0,0.00016767,2]
[366371430,1750218665419,-490.0,0.00016767,2]
[366371431,1750218665434,-490.0,0.00016767,2]
[366371432,1750218665447,-799.11,0.00016767,2]
[366371433,1750218665459,-490.0,0.00016767,2]
[366371434,1750218665471,-2007.91,0.00016767,2]
[366371435,1750218665484,-490.0,0.00016767,2]
[366371436,1750218665498,-1466.49,0.00016767,2]
[366371437,1750218665511,-517.32,0.00016767,2]
[366371438,1750218665524,-447.24788218,0.00016767,2]
[366371439,1750218665537,-490.0,0.00016767,2]
[366371440,1750218665551,-497.14,0.00016767,2]
[366371441,1750218665565,-490.0,0.00016767,2]
[366371442,1750218665576,-490.0,0.00016767,2]
[366371443,1750218665589,-593.55,0.00016767,2]
[366371444,1750218665601,-709.3,0.00016767,2]
[366371445,1750218665613,-740.16,0.00016767,2]
[366371446,1750218665625,-490.0,0.00016767,2]
[366371447,1750218665637,-558.54,0.00016767,2]
[366371448,1750218665649,-1839.23,0.00016767,2]
[366371449,1750218665661,-490.0,0.00016767,2]
[366371450,1750218665672,-1344.72,0.00016767,2]
[366371451,1750218665684,-2307.99,0.00016767,2]
[366371452,1750218665695,-490.0,0.00016767,2]
[366371453,1750218665707,-490.0,0.00016767,2]
[366371454,1750218665718,-488.27955624,0.00016767,2]
[366371455,1750218665729,-1121.77,0.00016767,2]
[366371456,1750218665741,-658.79,0.00016767,2]
[366371457,1750218665753,-490.0,0.00016767,2]
[366371458,1750218665768,-1326.66,0.00016767,2]
[366371459,1750218665779,-1636.75,0.00016767,2]
[366371460,1750218665791,-978.01,0.00016767,2]
[366371461,1750218665804,-490.0,0.00016767,2]
[366371462,1750218665815,-783.02,0.00016767,2]
[366371463,1750218666282,-1770.42,0.00016767,2]
[366371464,1750218666313,-490.0,0.00016767,2]
[366371465,1750218666337,-1236.67,0.00016767,2]
[366371466,1750218666360,-1598.55,0.00016767,2]
[366371467,1750218666369,-490.0,0.00016767,2]
[366371468,1750218666379,-490.0,0.00016767,2]
[366371469,1750218666390,-490.0,0.00016767,2]
[366371470,1750218666399,-490.0,0.00016767,2]
[366371471,1750218666409,-1741.66,0.00016767,2]
[366371472,1750218666419,-490.0,0.00016767,2]
[366371473,1750218666429,-490.0,0.00016767,2]
[366371474,1750218666439,-553.54,0.00016767,2]
[366371475,1750218666449,-490.0,0.00016767,2]
[366371476,1750218666458,-2549.1,0.00016767,2]
[366371477,1750218666468,-864.75,0.00016767,2]
[366371478,1750218666477,-490.0,0.00016767,2]
[366371479,1750218666487,-490.0,0.00016767,2]
[366371480,1750218666496,-651.9,0.00016767,2]
[366371481,1750218666505,-490.0,0.00016767,2]
[366371482,1750218666514,-490.0,0.00016767,2]
[366371483,1750218666524,-910.58,0.00016767,2]
[366371484,1750218666534,-1519.52,0.00016767,2]
[366371485,1750218666543,-490.0,0.00016767,2]
[366371486,1750218666553,-490.0,0.00016767,2]
[366371487,1750218666562,-490.0,0.00016767,2]
[366371488,1750218666572,-490.0,0.00016767,2]
[366371489,1750218666582,-490.0,0.00016767,2]
[366371490,1750218666592,-618.46,0.00016767,2]
[366371491,1750218666601,-490.0,0.00016767,2]
[366371492,1750218666611,-716.05,0.00016767,2]
[366371493,1750218666621,-2097.15,0.00016767,2]
[366371494,1750218666630,-490.0,0.00016767,2]
[366371495,1750218666641,-522.82,0.00016767,2]
[366371496,1750218666650,-490.0,0.00016767,2]
[366371497,1750218666659,-490.0,0.00016767,2]
[366371498,1750218666670,-490.0,0.00016767,2]
[366371499,1750218666679,-490.0,0.00016767,2]
[366371500,1750218666689,-490.0,0.00016767,2]
[366371501,1750218666699,-490.0,0.00016767,2]
[366371502,1750218666708,-1314.5,0.00016767,2]
[366371503,1750218666718,-490.0,0.00016767,2]
[366371504,1750218666727,-1833.33,0.00016767,2]
[366371505,1750218666737,-519.25,0.00016767,2]
[366371506,1750218666747,-490.0,0.00016767,2]
[366371507,1750218666757,-606.79,0.00016767,2]
[366371508,1750218666766,-151.0,0.00016767,2]
[366371509,1750218666776,-540.89,0.00016767,2]
[366371510,1750218666786,-151.0,0.00016767,2]
[366371511,1750218666796,-151.0,0.00016767,2]
[366371512,1750218666806,-742.35,0.00016767,2]
[366371513,1750218666815,-863.58,0.00016767,2]
[366371514,1750218666825,-153.40971098,0.00016767,2]
[366371515,1750218666836,-490.0,0.00016767,2]
[366371516,1750218666845,-490.0,0.00016767,2]
[366371517,1750218666855,-1918.62,0.00016767,2]
[366371518,1750218666865,-490.0,0.00016767,2]
[366371519,1750218666875,-1204.05,0.00016767,2]
[366371520,1750218666885,-490.0,0.00016767,2]
[366371521,1750218666894,-1614.79,0.00016767,2]
[366371522,1750218666905,-1738.0,0.00016767,2]
[366371523,1750218666915,-616.22,0.00016767,2]
[366371524,1750218666925,-490.0,0.00016767,2]
[366371525,1750218666935,-349.32403921,0.00016767,2]
[366371526,1750218666945,-892.26,0.00016767,2]
[366371527,1750218666954,-490.0,0.00016767,2]
[366371528,1750218666964,-490.0,0.00016767,2]
[366371529,1750218666974,-2202.81,0.00016767,2]
[366371530,1750218666984,-490.0,0.00016767,2]
[366371531,1750218666993,-490.0,0.00016767,2]
[366371532,1750218667003,-766.33,0.00016767,2]
[366371533,1750218667012,-490.0,0.00016767,2]
[366371534,1750218667022,-630.08,0.00016767,2]
[366371535,1750218667033,-620.41,0.00016767,2]
[366371536,1750218667043,-490.0,0.00016767,2]
[366371537,1750218667053,-490.0,0.00016767,2]
[366371538,1750218667062,-490.0,0.00016767,2]
[366371539,1750218667072,-555.62,0.00016767,2]
[366371540,1750218667082,-798.39,0.00016767,2]
[366371541,1750218667091,-1168.39,0.00016767,2]
[366371542,1750218667100,-660.0,0.00016767,2]
[366371543,1750218667110,-490.0,0.00016767,2]
[366371544,1750218667119,-490.0,0.00016767,2]
[366371545,1750218667129,-490.0,0.00016767,2]
[366371546,1750218667142,-347.05,0.00016767,2]
[366371547,1750218667156,-789.28,0.00016767,2]
[366371548,1750218667166,-490.0,0.00016767,2]
[366371549,1750218667176,-1097.8,0.00016767,2]
[366371550,1750218667187,-577.22635076,0.00016767,2]
[366371551,1750218667197,-490.0,0.00016767,2]
[366371552,1750218667206,-490.0,0.00016767,2]
[366371553,1750218667216,-812.45,0.00016767,2]
[366371554,1750218667227,-1360.49,0.00016767,2]
[366371555,1750218667237,-490.0,0.00016767,2]
[366371556,1750218667247,-1499.29,0.00016767,2]
[366371557,1750218667256,-490.0,0.00016767,2]
[366371558,1750218667266,-1083.86,0.00016767,2]
[366371559,1750218667276,-490.0,0.00016767,2]
[366371560,1750218667286,-4696.22,0.00016767,2]
[366371561,1750218667296,-743.09,0.00016767,2]
[366371562,1750218667305,-490.0,0.00016767,2]
[366371563,1750218667316,-537.25,0.00016767,2]
[366371564,1750218667326,-490.0,0.00016767,2]
[366371565,1750218667336,-490.0,0.00016767,2]
[366371566,1750218667346,-490.0,0.00016767,2]
[366371567,1750218667355,-536.62,0.00016767,2]
[366371568,1750218667365,-992.05,0.00016767,2]
[366371569,1750218667374,-19589.19,0.00016767,2]
[366371570,1750218667384,-693.17,0.00016767,2]
[366371571,1750218667394,-490.0,0.00016767,2]
[366371572,1750218667403,-490.0,0.00016767,2]
[366371573,1750218667413,-2306.99,0.00016767,2]
[366371574,1750218667423,-490.0,0.00016767,2]
[366371575,1750218667432,-490.0,0.00016767,2]
[366371576,1750218667441,-955.59,0.00016767,2]
[366371577,1750218667451,-1022.22,0.00016767,2]
[366371578,1750218667460,-547.19,0.00016767,2]
[366371579,1750218667470,-1095.24,0.00016767,2]
[366371580,1750218667480,-490.0,0.00016767,2]
[366371581,1750218667489,-2353.3,0.00016767,2]
[366371582,1750218667499,-490.0,0.00016767,2]
[366371583,1750218667509,-8446.41,0.00016767,2]
[366371584,1750218667519,-300.0,0.00016767,2]
[366371585,1750218667538,-490.0,0.00016767,2]
[366371586,1750218667551,-1430.64,0.00016767,2]
[366371587,1750218667561,-2435.63,0.00016767,2]
[366371588,1750218667572,-1338.11,0.00016767,2]
[366371589,1750218667583,-537.19,0.00016767,2]
[366371590,1750218667594,-2850.53,0.00016767,2]
[366371591,1750218667604,-1282.7,0.00016767,2]
[366371592,1750218667615,-490.0,0.00016767,2]
[366371593,1750218667625,-1665.93,0.00016767,2]
[366371594,1750218667635,-490.0,0.00016767,2]
[366371595,1750218667646,-490.0,0.00016767,2]
[366371596,1750218667656,-490.0,0.00016767,2]
[366371597,1750218667666,-1100.52,0.00016767,2]
[366371598,1750218667676,-490.0,0.00016767,2]
[366371599,1750218667686,-6439.01,0.00016767,2]
[366371600,1750218667696,-490.0,0.00016767,2]
[366371601,1750218667706,-490.0,0.00016767,2]
[366371602,1750218667716,-1254.54,0.00016767,2]
[366371603,1750218667726,-678.26,0.00016767,2]
[366371604,1750218667737,-1875.44,0.00016767,2]
[366371605,1750218667747,-7105.08,0.00016767,2]
[366371606,1750218667757,-1199.99,0.00016767,2]
[366371607,1750218667767,-490.0,0.00016767,2]
[366371608,1750218667778,-490.0,0.00016767,2]
[366371609,1750218667788,-1429.29,0.00016767,2]
[366371610,1750218667798,-1211.77,0.00016767,2]
[366371611,1750218667809,-1795.98,0.00016767,2]
[366371612,1750218667819,-735.49,0.00016767,2]
[366371613,1750218667829,-490.0,0.00016767,2]
[366371614,1750218667839,-1796.16,0.00016767,2]
[366371615,1750218667850,-4716.11,0.00016767,2]
[366371616,1750218667860,-940.66,0.00016767,2]
[366371617,1750218667870,-490.0,0.00016767,2]
[366371618,1750218667880,-490.0,0.00016767,2]
[366371619,1750218667890,-1719.73,0.00016767,2]
[366371620,1750218667901,-15409.62,0.00016767,2]
[366371621,1750218667911,-809.73,0.00016767,2]
[366371622,1750218667922,-490.0,0.00016767,2]
[366371623,1750218667931,-490.0,0.00016767,2]
[366371624,1750218667942,-490.0,0.00016767,2]
[366371625,1750218667952,-490.0,0.00016767,2]
[366371626,1750218667962,-3648.97,0.00016767,2]
[366371627,1750218667972,-8306.29,0.00016767,2]
[366371628,1750218667982,-490.0,0.00016767,2]
[366371629,1750218667992,-4891.01,0.00016767,2]
[366371630,1750218668003,-490.0,0.00016767,2]
[366371631,1750218668013,-490.0,0.00016767,2]
[366371632,1750218668023,-2166.48,0.00016767,2]
[366371633,1750218668033,-490.0,0.00016767,2]
[366371634,1750218668043,-490.0,0.00016767,2]
[366371635,1750218668053,-2671.46,0.00016767,2]
[366371636,1750218668063,-490.0,0.00016767,2]
[366371637,1750218668072,-753.14,0.00016767,2]
[366371638,1750218668082,-2495.09,0.00016767,2]
[366371639,1750218668092,-490.0,0.00016767,2]
[366371640,1750218668102,-3755.77,0.00016767,2]
[366371641,1750218668112,-490.0,0.00016767,2]
[366371642,1750218668122,-622.94,0.00016767,2]
[366371643,1750218668132,-490.0,0.00016767,2]
[366371644,1750218668145,-490.0,0.00016767,2]
[366371645,1750218668155,-953.29,0.00016767,2]
[366371646,1750218668165,-2886.38,0.00016767,2]
[366371647,1750218668175,-490.0,0.00016767,2]
[366371648,1750218668185,-2203.13,0.00016767,2]
[366371649,1750218668195,-574.11,0.00016767,2]